bitfinex-derivatives/quotes_ETHF0:USTF0_20250614
["timestamp","ask_amount","ask_price","bid_price","bid_amount"]
[1749885793418,1.13375853,2533.0,2532.9,1.82614]
[1749885793614,3.2078,2533.2,2533.0,0.47353]
[1749885793918,3.2078,2533.2,2533.1,1.82611]
[1749885794216,4.34152275,2533.2,2533.1,1.3526]
[1749885795722,4.34152275,2533.2,2533.1,1.82611]
[1749885797022,3.2078,2533.2,2533.1,1.82611]
[1749885797624,4.07943698,2533.6,2533.3,0.47346]
[1749885797817,1.13173472,2533.5,2533.3,0.47346]
[1749885798121,1.13173472,2533.4,2533.3,0.47346]
[1749885799022,3.2078,2533.6,2533.5,0.47343]
[1749885801317,0.6761,2534.0,2533.3,1.2421]
[1749885801318,3.2078,2533.9,2533.7,0.47339]
[1749885802025,3.2078,2533.9,2533.7,1.82519]
[1749885802720,3.2078,2533.9,2533.8,0.47338]
[1749885802926,3.2078,2533.9,2533.8,1.3518]
[1749885803225,3.2078,2533.9,2533.8,1.82518]
[1749885803725,3.2078,2533.9,2533.8,1.3518]
[1749885803922,3.2078,2533.9,2533.8,1.82518]
[1749885806737,3.2078,2533.9,2533.8,1.3518]
[1749885806926,3.2078,2533.9,2533.8,1.82518]
[1749885809430,3.2078,2534.5,2533.9,0.47335]
[1749885809735,0.47332,2534.2,2533.9,32.61434]
[1749885810035,1.74247,2534.4,2534.1,0.47331]
[1749885810331,0.47328,2534.3,2534.1,0.47331]
[1749885810637,3.00518,2534.4,2534.1,0.47331]
[1749885810832,3.00518,2534.4,2533.9,32.141]
[1749885810833,3.00518,2534.4,2534.2,0.47329]
[1749885811030,3.00518,2534.4,2534.3,0.47328]
[1749885811031,1.2692,2534.4,2534.3,0.47328]
[1749885811238,3.681,2534.8,2534.1,3.2078]
[1749885811449,3.681,2534.8,2534.2,1.31382382]
[1749885811645,3.681,2534.8,2534.3,32.125]
[1749885811841,3.681,2534.8,2534.4,1.3079]
[1749885812042,3.2078,2534.8,2534.7,0.47321]
[1749885814243,1.81923,2535.1,2534.7,6.945]
[1749885814442,1.81923,2535.1,2534.8,0.47318]
[1749885814643,1.81924,2535.1,2534.8,0.47319]
[1749885815445,1.3461,2535.1,2534.7,32.095]
[1749885815650,0.47316,2535.0,2534.7,32.5682]
[1749885816647,1.81924,2535.1,2534.8,0.47318]
[1749885816945,0.47317,2534.9,2534.8,6.944]
[1749885817143,0.47316,2535.0,2534.8,6.944]
[1749885817650,1.81924,2535.1,2534.8,7.41718]
[1749885817850,1.81925,2535.1,2534.8,7.41718]
[1749885818151,0.6825,2535.1,2535.0,0.47315]
[1749885818349,0.6825,2535.1,2534.9,0.47316]
[1749885819047,0.6825,2535.1,2534.9,1.75886]
[1749885819249,1.15564,2535.1,2534.9,1.75886]
[1749885819445,0.6825,2535.1,2534.9,1.75886]
[1749885820255,0.6825,2535.1,2534.9,1.2857]
[1749885820555,0.6825,2535.1,2535.0,0.47315]
[1749885820750,1.15564,2535.1,2534.9,1.75885]
[1749885820949,1.15564,2535.1,2534.9,33.78685]
[1749885821854,1.15564,2535.1,2534.9,1.75885]
[1749885822054,0.6825,2535.1,2534.9,33.3037]
[1749885822352,3.2078,2535.2,2534.9,33.3037]
[1749885822558,3.68092,2535.2,2535.0,0.47314]
[1749885823057,3.2078,2535.2,2534.9,33.77686]
[1749885823244,0.47314,2535.1,2534.9,33.77686]
[1749885823451,0.47313,2535.1,2534.9,33.77685]
[1749885824259,0.47314,2535.1,2534.9,33.77686]
[1749885824461,3.68093,2535.2,2535.0,0.47314]
[1749885824757,3.68093,2535.2,2535.0,0.47315]
[1749885825147,3.2078,2535.2,2534.9,33.3037]
[1749885825353,3.68093,2535.2,2535.0,0.47315]
[1749885825658,0.47313,2535.1,2534.9,33.3037]
[1749885826159,3.2078,2535.2,2534.9,33.3037]
[1749885826456,3.68093,2535.2,2535.0,0.47315]
[1749885826762,3.2078,2535.2,2534.9,33.3037]
[1749885827057,3.2078,2535.2,2535.0,0.47314]
[1749885827250,0.47314,2535.1,2534.9,33.77686]
[1749885827751,0.47313,2535.1,2535.0,25.001]
[1749885828156,3.68093,2535.2,2535.0,25.47415]
[1749885828351,3.68092,2535.2,2535.0,25.47415]
[1749885828553,0.47313,2535.1,2535.0,25.001]
[1749885828852,1.59957641,2535.1,2535.0,25.001]
[1749885829251,1.59957641,2535.1,2535.0,25.47415]
[1749885829452,1.12644641,2535.1,2535.0,25.001]
[1749885829849,1.12644641,2535.1,2535.0,25.47415]
[1749885830552,1.12644641,2535.1,2535.0,25.001]
[1749885830760,1.12644641,2535.1,2535.0,25.47415]
[1749885832261,3.2078,2535.2,2535.1,0.47313]
[1749885833661,0.47308,2535.4,2535.2,0.4731]
[1749885833854,1.12740328,2535.3,2535.2,25.4201]
[1749885836357,0.47309,2535.4,2535.3,0.4731]
[1749885836559,1.60160089,2535.4,2535.3,0.4731]
[1749885836761,1.60160089,2535.4,2535.2,25.42011]
[1749885837060,1.12851089,2535.3,2535.2,25.42011]
[1749885839561,1.60162089,2535.3,2534.8,40.8]
[1749885839864,1.12851089,2535.2,2535.1,0.47313]
[1749885840065,1.12851089,2535.2,2535.1,25.34713]
[1749885840257,1.13126509,2535.3,2535.2,0.47311]
[1749885840761,6.84219843,2535.5,2535.3,0.47309]
[1749885840962,1.13126683,2535.4,2535.3,0.47309]
[1749885841466,1.60434683,2535.4,2535.1,24.874]
[1749885841660,1.13126683,2535.3,2535.2,0.47311]
[1749885843864,1.13234187,2535.3,2535.2,0.47311]
[1749885844069,1.13234187,2535.3,2535.1,24.874]
[1749885844262,1.13234187,2535.2,2535.1,25.34713]
[1749885849367,1.13234187,2535.2,2535.1,0.47313]
[1749885849570,1.13234187,2535.2,2535.1,32.03313]
[1749885850665,1.13234187,2535.2,2535.1,32.71283]
[1749885852670,0.6592,2535.5,2535.4,0.47308]
[1749885852972,1.79140005,2535.5,2535.4,0.47308]
[1749885853564,1.13220005,2535.5,2535.4,0.47308]
[1749885854067,1.13220005,2535.5,2535.4,1.85148]
[1749885855067,1.13220005,2535.5,2535.4,2.52148]
[1749885855458,3.8588,2535.9,2535.7,0.47302]
[1749885855665,1.13185622,2535.8,2535.7,0.47302]
[1749885856363,1.60485622,2535.8,2535.7,0.47302]
[1749885856565,6.60485622,2535.8,2535.6,0.47303]
[1749885856762,0.47304,2535.6,2535.5,0.00592382]
[1749885856962,1.60489622,2535.6,2535.5,0.00592382]
[1749885857162,1.13185622,2535.6,2535.5,0.47898382]
[1749885859269,1.13185622,2535.6,2535.5,1.79318382]
[1749885861475,4.33179,2535.9,2535.7,0.47301]
[1749885861675,1.60429671,2535.8,2535.6,0.47303]
[1749885861870,1.13128671,2535.7,2535.5,32.72012382]
[1749885862172,1.60430042,2535.6,2535.5,0.00592382]
[1749885862474,1.18286,2535.1,2533.6,3.2078]
[1749885862671,3.2078,2534.2,2533.6,28.62321]
[1749885862870,0.47335,2534.0,2533.7,0.47339]
[1749885863072,0.4733,2534.3,2533.8,24.947]
[1749885863269,1.12943832,2534.2,2533.9,0.47335]
[1749885863576,0.47331,2534.2,2533.9,1.2869]
[1749885863971,0.00592382,2534.3,2533.9,1.2869]
[1749885864276,0.47332,2534.1,2533.9,1.2869]
[1749885864671,0.47334,2534.0,2533.8,0.00592382]
[1749885864878,0.47334,2534.0,2533.8,31.56892382]
[1749885865074,0.47334,2534.0,2533.8,0.00592382]
[1749885865270,0.47336,2533.9,2533.8,0.00592382]
[1749885866480,5.47336,2533.9,2533.8,0.00592382]
[1749885866778,6.59877215,2533.9,2533.8,0.00592382]
[1749885867075,0.47346,2533.4,2533.3,6.628]
[1749885867280,0.47344,2533.5,2533.3,6.628]
[1749885867491,0.47345,2533.4,2533.3,6.628]
[1749885868282,0.47345,2533.4,2533.3,6.69576204]
[1749885868580,0.6726,2533.6,2533.3,0.06776204]
[1749885868777,0.47345,2533.4,2533.3,0.06776204]
[1749885869373,3.68125,2533.4,2533.3,0.06776204]
[1749885870482,0.47344,2533.5,2533.3,0.06776204]
[1749885871081,0.47345,2533.4,2533.3,0.06776204]
[1749885871978,0.6726,2533.6,2533.3,0.06776204]
[1749885872176,0.6726,2533.6,2533.5,0.47343]
[1749885872374,0.4734,2533.7,2533.4,0.54120204]
[1749885872583,0.47342,2533.6,2533.4,0.54120204]
[1749885872780,0.47342,2533.6,2533.4,0.06776204]
[1749885873381,0.47342,2533.6,2533.5,0.06776204]
[1749885874287,1.79052,2533.6,2533.5,0.06776204]
[1749885875592,0.4734,2533.7,2533.5,0.06776204]
[1749885875889,0.47341,2533.6,2533.5,0.06776204]
[1749885876991,0.6534,2533.8,2533.5,0.06776204]
[1749885877192,0.47341,2533.6,2533.5,0.06776204]
[1749885878785,4.5249,2534.0,2533.5,0.06776204]
[1749885878786,3.2078,2534.0,2533.5,0.06776204]
[1749885878991,3.2078,2534.0,2533.7,0.47339]
[1749885879193,0.47337,2533.9,2533.6,1.7258]
[1749885879386,0.47338,2533.8,2533.7,0.06776204]
[1749885885698,1.73588,2533.8,2533.7,0.06776204]
[1749885886501,0.47338,2533.8,2533.7,0.06776204]
[1749885890403,0.47338,2533.8,2533.7,1.43916204]
[1749885891409,0.47337,2533.9,2533.7,1.91254204]
[1749885891710,0.47337,2533.9,2533.8,1.3714]
[1749885892409,0.47337,2533.9,2533.8,1.43916204]
[1749885893311,0.47336,2533.9,2533.8,1.43916204]
[1749885893511,3.68115,2534.0,2533.8,1.43916204]
[1749885893711,3.68115,2534.0,2533.8,1.91253204]
[1749885894213,0.47336,2533.9,2533.8,1.43916204]
[1749885900818,3.2078,2534.0,2533.8,1.91253204]
[1749885900819,3.68115,2534.0,2533.8,1.91253204]
[1749885901015,0.00592382,2534.3,2533.8,4.64696204]
[1749885901219,0.47332,2534.1,2533.9,0.47334]
[1749885901418,0.47332,2534.1,2534.0,1.32986204]
[1749885901720,0.00592382,2534.3,2534.0,1.32986204]
[1749885901910,0.00592382,2534.3,2534.2,0.4733]
[1749885902414,0.00592382,2534.3,2534.2,1.8318]
[1749885902621,0.00592382,2534.3,2534.2,1.89956204]
[1749885903920,23.87,2535.4,2534.2,9.63406204]
[1749885903921,3.2078,2534.8,2534.2,9.63406204]
[1749885904122,3.2078,2534.8,2534.6,0.47322]
[1749885904323,3.681,2534.8,2534.7,1.3585]
[1749885904521,3.681,2534.8,2534.7,1.42626204]
[1749885905421,3.681,2534.8,2534.7,0.06776204]
[1749885906821,3.681,2534.8,2534.7,1.39626204]
[1749885907323,3.2078,2534.8,2534.7,1.39626204]
[1749885907520,3.2078,2534.8,2534.7,1.86947204]
[1749885907824,0.00592382,2535.0,2534.7,1.39626204]
[1749885908522,0.00592382,2535.0,2534.8,0.47319]
[1749885908825,0.00592382,2535.0,2534.9,1.3684]
[1749885909122,0.00592382,2535.0,2534.8,0.06776204]
[1749885909418,0.47317,2534.9,2534.8,6.70376204]
[1749885910020,0.47317,2534.9,2534.8,0.06776204]
[1749885910530,0.00592382,2535.0,2534.8,0.06776204]
[1749885910823,0.47907382,2535.0,2534.9,0.6644]
[1749885911028,0.47907382,2535.0,2534.9,7.3004]
[1749885911514,0.00592382,2535.0,2534.9,7.77357]
[1749885911719,0.00592382,2535.0,2534.9,9.15093204]
[1749885912327,0.47907382,2535.0,2534.9,8.67776204]
[1749885913728,0.00592382,2535.0,2534.9,9.15093204]
[1749885914031,0.47907382,2535.0,2534.9,8.67776204]
[1749885914322,0.00592382,2535.0,2534.9,9.15093204]
[1749885914525,0.00592382,2535.0,2534.9,8.67776204]
[1749885914727,0.47907382,2535.0,2534.9,8.67776204]
[1749885917431,0.00592382,2535.0,2534.9,9.15093204]
[1749885917729,0.00592382,2535.0,2534.9,12.35873204]
[1749885918324,0.47907382,2535.0,2534.9,11.88456204]
[1749885918523,0.00592382,2535.0,2534.9,12.35773204]
[1749885918726,0.00592382,2535.0,2534.9,9.14993204]
[1749885927941,0.00592382,2535.0,2534.9,17.35773204]
[1749885928442,0.00592382,2535.0,2534.9,58.15773204]
[1749885931443,0.00592382,2535.0,2534.9,53.15773204]
[1749885933344,0.00592382,2535.0,2534.9,44.54873204]
[1749885933551,0.00592382,2535.0,2534.9,75.94373204]
[1749885933946,0.00592382,2535.0,2534.9,35.14373204]
[1749885934850,0.00592382,2535.0,2534.9,36.42233204]
[1749885935448,0.00592382,2535.0,2534.9,11.65433204]
[1749885935648,0.00592382,2535.0,2534.9,36.42033204]
[1749885937046,0.00592382,2535.0,2534.9,5.02733204]
[1749885937246,0.00592382,2535.0,2534.9,36.42033204]
[1749885940453,0.00592382,2535.0,2534.9,36.41833204]
[1749885943946,0.00592382,2535.0,2534.9,3.74873204]
[1749885944149,0.47907382,2535.0,2534.9,31.45776204]
[1749885944347,0.00592382,2535.0,2534.9,31.93093204]
[1749885944640,0.64702382,2535.0,2534.9,31.93093204]
[1749885944840,1.77828784,2535.0,2534.9,0.54093204]
[1749885945046,1.77828784,2535.0,2534.9,31.92993204]
[1749885946148,2.25143784,2535.0,2534.9,31.92993204]
[1749885946355,1.77828784,2535.0,2534.9,31.92993204]
[1749885947151,2.25143784,2535.0,2534.9,24.82876204]
[1749885947345,4.21433784,2535.0,2534.9,24.82876204]
[1749885948859,4.21433784,2535.0,2534.9,25.30194204]
[1749885949058,3.74118784,2535.0,2534.9,25.30194204]
[1749885949559,2.44118784,2535.0,2534.9,25.30194204]
[1749885949859,2.91434784,2535.0,2534.9,24.82776204]
[1749885950953,2.44118784,2535.0,2534.9,25.30094204]
[1749885951359,2.91434784,2535.0,2534.9,24.82776204]
[1749885951548,3.82058784,2535.0,2534.9,25.30094204]
[1749885951751,4.29374784,2535.0,2534.9,24.82776204]
[1749885953159,3.82058784,2535.0,2534.9,25.30094204]
[1749885953552,2.44118784,2535.0,2534.9,25.30094204]
[1749885954461,1.77828784,2535.0,2534.9,25.30094204]
[1749885956266,1.13718784,2535.0,2534.9,25.30094204]
[1749885957062,1.13623071,2535.0,2534.9,26.55394204]
[1749885957866,0.00592382,2535.0,2534.9,26.55394204]
[1749885961966,3.68087,2535.5,2535.3,0.47308]
[1749885962265,3.68087,2535.5,2535.4,25.3795]
[1749885962464,4.81184073,2535.5,2535.4,25.3795]
[1749885962666,4.81184073,2535.5,2535.4,25.44726204]
[1749885963167,4.33877073,2535.5,2535.4,25.92034204]
[1749885965374,1.13097073,2535.5,2535.4,25.92034204]
[1749885968171,1.3265,2535.9,2535.4,27.31686204]
[1749885968373,0.47304,2535.7,2535.4,27.31686204]
[1749885968568,0.47304,2535.7,2535.5,0.47305]
[1749885968778,2.6422,2535.9,2535.6,24.81476204]
[1749885968967,1.12959318,2535.8,2535.6,24.81476204]
[1749885969166,1.60262318,2535.7,2535.6,24.81476204]
[1749885970168,1.12959318,2535.7,2535.6,24.81476204]
[1749885970373,2.6422,2535.9,2535.6,24.81476204]
[1749885970571,0.47303,2535.7,2535.6,24.81476204]
[1749885971472,2.6422,2535.9,2535.6,24.81476204]
[1749885971667,0.47303,2535.7,2535.6,24.81476204]
[1749885973175,0.47301,2535.8,2535.6,25.28780204]
[1749885973375,0.47303,2535.7,2535.6,24.81476204]
[1749885973979,0.47303,2535.7,2535.6,25.28781204]
[1749885974472,0.47303,2535.7,2535.6,24.81476204]
[1749885976077,0.47303,2535.7,2535.6,24.80676204]
[1749885976273,1.60112922,2535.7,2535.6,24.80676204]
[1749885977778,2.94782922,2535.7,2535.6,24.80676204]
[1749885979577,3.65739922,2535.7,2535.4,24.737]
[1749885979774,1.12809922,2535.6,2535.4,24.737]
[1749885979971,0.47306,2535.5,2535.4,24.737]
[1749885980173,1.60115922,2535.5,2535.4,24.737]
[1749885980879,0.4731,2535.3,2535.1,1.72223]
[1749885981080,0.4731,2535.3,2535.2,31.353]
[1749885981284,0.47312,2535.2,2535.1,1.2491]
[1749885981582,0.47313,2535.2,2535.1,31.352]
[1749885982481,0.47313,2535.2,2535.1,31.82514]
[1749885982886,0.47311,2535.3,2535.1,31.82514]
[1749885983587,0.47312,2535.2,2535.1,31.352]
[1749885983984,0.47312,2535.2,2535.1,32.7267]
[1749885984588,0.47312,2535.2,2535.1,31.352]
[1749885985286,0.47311,2535.3,2535.1,31.352]
[1749885986579,0.47311,2535.3,2535.1,31.82514]
[1749885987081,3.8692,2535.5,2535.2,0.47312]
[1749885987288,1.6032685,2535.4,2535.3,24.732]
[1749885987890,1.1301885,2535.4,2535.3,24.732]
[1749885988187,1.6032685,2535.4,2535.3,24.732]
[1749885989785,1.1301885,2535.4,2535.3,25.2051]
[1749885990090,1.6032685,2535.4,2535.3,24.732]
[1749885990488,1.6032685,2535.4,2535.3,26.0553]
[1749885992691,1.6032685,2535.4,2535.3,32.6563]
[1749885993294,1.1301885,2535.4,2535.3,32.6563]
[1749885993590,1.6032685,2535.4,2535.3,32.6563]
[1749885995488,1.6032685,2535.4,2535.3,7.9293]
[1749885995691,1.6032685,2535.4,2535.3,32.6553]
[1749885999407,1.1301885,2535.4,2535.3,33.1284]
[1749886000698,1.6032685,2535.4,2535.3,32.6553]
[1749886001386,1.1301885,2535.4,2535.3,33.1284]
[1749886001590,1.6032685,2535.4,2535.3,32.6553]
[1749886004398,1.1301885,2535.4,2535.3,33.1284]
[1749886004697,1.6032685,2535.4,2535.3,32.6553]
[1749886005402,1.6032685,2535.4,2535.3,32.6463]
[1749886010103,1.1301885,2535.4,2535.3,33.1194]
[1749886010505,1.6032685,2535.4,2535.3,33.1194]
[1749886011604,1.6032685,2535.4,2535.3,32.6463]
[1749886013008,1.1301885,2535.4,2535.3,33.1194]
[1749886013207,1.6032685,2535.4,2535.3,33.1194]
[1749886013507,1.6032685,2535.4,2535.3,7.9293]
[1749886013708,1.6032685,2535.4,2535.3,32.6373]
[1749886015514,1.6032685,2535.4,2535.3,31.314]
[1749886017018,1.6032685,2535.4,2535.2,0.47311]
[1749886017218,0.47308,2535.4,2535.3,31.295]
[1749886017409,1.60535999,2535.4,2535.3,31.295]
[1749886018917,1.13227999,2535.4,2535.1,1.73814]
[1749886019119,1.13227999,2535.3,2535.2,24.703]
[1749886019514,1.60538999,2535.3,2535.2,24.703]
[1749886019820,1.13227999,2535.3,2535.2,25.17612]
[1749886020021,1.13227999,2535.3,2535.2,26.44112]
[1749886020921,1.13227999,2535.3,2535.2,25.968]
[1749886021120,1.60537999,2535.3,2535.2,25.968]
[1749886021314,1.13227999,2535.3,2535.2,25.968]
[1749886022621,1.13227999,2535.3,2535.2,26.44112]
[1749886023019,1.13227999,2535.3,2535.2,33.02812]
[1749886033327,1.13227999,2535.3,2535.0,4.512]
[1749886033328,0.47313,2535.2,2535.0,4.512]
[1749886033526,3.2078,2535.5,2535.1,31.28]
[1749886033725,0.47312,2535.3,2535.1,31.28]
[1749886034025,0.47312,2535.3,2535.1,7.06314]
[1749886034026,1.12949726,2535.2,2535.1,7.06314]
[1749886034229,1.12949726,2535.2,2535.1,31.75214]
[1749886034428,1.12949726,2535.2,2535.1,33.05784]
[1749886036723,0.47311,2535.3,2535.1,33.05784]
[1749886036923,1.12923013,2535.2,2535.1,33.05784]
[1749886037228,1.12923013,2535.2,2535.1,31.75214]
[1749886037727,0.6783,2535.7,2535.2,0.47311]
[1749886037923,0.47307,2535.5,2535.3,24.686]
[1749886038225,1.12932012,2535.4,2535.3,25.15909]
[1749886038426,1.12932012,2535.5,2535.3,25.15909]
[1749886038729,1.12932012,2535.4,2535.3,24.686]
[1749886039024,1.12932012,2535.4,2535.3,25.1591]
[1749886039225,1.12932012,2535.4,2535.3,24.686]
[1749886039826,1.60240012,2535.4,2535.3,24.686]
[1749886040025,1.12932012,2535.4,2535.3,24.686]
[1749886040527,1.12932012,2535.4,2535.3,25.1591]
[1749886041029,1.60240012,2535.4,2535.3,24.686]
[1749886041425,1.60240012,2535.4,2535.2,0.47311]
[1749886041625,1.77182012,2535.3,2535.2,0.47311]
[1749886041826,1.77182012,2535.3,2535.2,31.74511]
[1749886044424,0.6425,2535.3,2535.2,31.74511]
[1749886046236,0.6425,2535.3,2535.2,0.47311]
[1749886046426,0.6425,2535.3,2535.2,31.72311]
[1749886046627,0.47307,2535.5,2535.3,0.47309]
[1749886046829,0.47307,2535.5,2535.4,24.677]
[1749886047129,1.60201603,2535.5,2535.4,24.677]
[1749886047931,1.60200603,2535.5,2535.4,24.677]
[1749886048433,1.12894603,2535.5,2535.4,25.15008]
[1749886048629,1.60200603,2535.5,2535.4,24.677]
[1749886049333,1.12894603,2535.5,2535.4,25.15008]
[1749886049534,1.60200603,2535.5,2535.4,24.677]
[1749886053541,1.12894603,2535.5,2535.4,25.15008]
[1749886053742,1.60200603,2535.5,2535.4,24.677]
[1749886053942,1.60200603,2535.5,2535.4,25.15008]
[1749886054342,1.60200603,2535.5,2535.4,24.677]
[1749886055342,1.12894603,2535.5,2535.4,25.15008]
[1749886055641,1.60200603,2535.5,2535.4,24.677]
[1749886055844,1.60154052,2535.5,2535.4,24.677]
[1749886056640,1.60154052,2535.5,2535.3,0.47309]
[1749886056843,1.60157052,2535.4,2535.2,7.04611]
[1749886057141,0.47309,2535.4,2535.3,24.665]
[1749886057342,1.60153907,2535.4,2535.3,24.665]
[1749886058542,1.12844907,2535.4,2535.0,3.2078]
[1749886058745,1.12844907,2535.3,2535.2,6.573]
[1749886059648,1.12844907,2535.3,2535.2,7.04612]
[1749886060343,0.47308,2535.5,2535.2,7.04612]
[1749886060546,1.6011619,2535.4,2535.3,24.663]
[1749886062146,1.6011519,2535.4,2535.3,24.663]
[1749886062346,1.1280719,2535.4,2535.3,24.663]
[1749886062746,1.6011519,2535.4,2535.3,24.663]
[1749886067651,1.1280719,2535.4,2535.3,31.236]
[1749886068351,1.6011519,2535.4,2535.3,31.236]
[1749886074456,1.1280719,2535.4,2535.3,31.7091]
[1749886078759,0.47308,2535.5,2535.3,31.7091]
[1749886079059,1.12863767,2535.4,2535.3,31.7091]
[1749886079961,1.60171767,2535.4,2535.3,31.236]
[1749886080260,1.12863767,2535.4,2535.3,31.6881]
[1749886081763,55.68721767,2535.4,2535.3,31.6881]
[1749886081962,111.51434767,2535.4,2535.3,31.6881]
[1749886084563,111.51391835,2535.4,2535.3,31.6881]
[1749886098672,111.51391835,2535.4,2535.3,33.003]
[1749886099076,111.51391835,2535.4,2535.3,33.6774]
[1749886103577,110.38571,2535.4,2535.3,33.6774]
[1749886103781,111.51008603,2535.4,2535.3,33.6774]
[1749886104175,111.51008603,2535.4,2535.3,38.6774]
[1749886104478,77.24973961,2535.4,2535.3,38.6774]
[1749886105675,76.86823961,2535.4,2535.3,38.6774]
[1749886105876,74.58848908,2535.4,2535.3,38.6774]
[1749886106074,72.61710569,2535.4,2535.3,38.6774]
[1749886106277,68.67433891,2535.4,2535.3,38.6774]
[1749886106577,66.28045552,2535.4,2535.3,38.6774]
[1749886106778,64.82925552,2535.4,2535.3,38.6774]
[1749886107177,55.63151896,2535.4,2535.3,38.6774]
[1749886107475,53.66013557,2535.4,2535.3,38.6774]
[1749886107694,51.68875218,2535.4,2535.3,38.6774]
[1749886107993,51.47845218,2535.4,2535.3,38.6774]
[1749886108593,49.50706879,2535.4,2535.3,38.6774]
[1749886108889,47.5356854,2535.4,2535.3,38.6774]
[1749886109094,43.59291862,2535.4,2535.3,38.6774]
[1749886109296,41.62153523,2535.4,2535.3,38.6774]
[1749886109994,40.42293524,2535.4,2535.3,38.6774]
[1749886111497,37.88297049,2535.4,2535.3,33.6774]
[1749886113397,37.88297049,2535.4,2535.3,9.0354]
[1749886113602,37.88297049,2535.4,2535.3,33.6384]
[1749886119904,37.88297049,2535.4,2535.3,9.0354]
[1749886120103,37.88297049,2535.4,2535.3,33.6284]
[1749886120703,37.88297049,2535.4,2535.3,9.0354]
[1749886121002,37.88297049,2535.4,2535.3,33.5874]
[1749886127703,37.88297049,2535.4,2535.3,7.0071]
[1749886127910,37.88297049,2535.4,2535.3,31.5921]
[1749886128210,37.88297049,2535.4,2535.3,31.5911]
[1749886131108,37.88297049,2535.4,2535.3,0.4731]
[1749886131307,37.88297049,2535.4,2535.3,31.5881]
[1749886136706,37.88297049,2535.4,2535.3,0.4731]
[1749886136906,37.88297049,2535.4,2535.3,6.9871]
[1749886137202,37.88297049,2535.4,2535.3,31.5621]
[1749886145228,37.88297049,2535.4,2535.3,32.8509]
[1749886150921,37.88297049,2535.4,2535.3,36.0587]
[1749886164123,37.37499049,2535.4,2535.3,36.0587]
[1749886167434,36.89236049,2535.4,2535.3,36.0587]
[1749886171236,36.36362049,2535.4,2535.3,35.9977]
[1749886172040,36.36362049,2535.4,2535.3,35.9967]
[1749886172635,36.36362049,2535.4,2535.3,4.9697]
[1749886172829,36.36362049,2535.4,2535.3,35.9957]
[1749886173531,35.86626049,2535.4,2535.3,35.9957]
[1749886176540,35.30267049,2535.4,2535.3,35.9957]
[1749886177540,34.31485049,2535.4,2535.3,35.9957]
[1749886177748,32.4373905,2535.4,2535.3,35.9957]
[1749886177935,31.5717405,2535.4,2535.3,35.9957]
[1749886178135,30.4210805,2535.4,2535.3,35.9957]
[1749886178334,30.15268051,2535.4,2535.3,35.9957]
[1749886178642,29.65893051,2535.4,2535.3,35.9957]
[1749886178838,29.02186051,2535.4,2535.3,35.9887]
[1749886179247,28.00912051,2535.4,2535.3,35.9887]
[1749886179438,27.71842052,2535.4,2535.3,35.9887]
[1749886179643,27.21306052,2535.4,2535.3,35.9887]
[1749886179938,25.31661053,2535.4,2535.3,35.9887]
[1749886180148,24.81109053,2535.4,2535.3,35.9887]
[1749886180443,24.30761053,2535.4,2535.3,35.9887]
[1749886180643,23.78898053,2535.4,2535.3,35.9887]
[1749886180844,23.29007053,2535.4,2535.3,35.9887]
[1749886181642,22.73866053,2535.4,2535.3,35.9887]
[1749886181844,22.21622053,2535.4,2535.3,35.9887]
[1749886182042,21.70686053,2535.4,2535.3,35.9887]
[1749886182850,21.12038053,2535.4,2535.3,35.9887]
[1749886184243,21.12038053,2535.4,2535.3,59.8367]
[1749886184949,20.64302053,2535.4,2535.3,59.8367]
[1749886186252,8.37869226,2535.4,2535.3,59.8367]
[1749886186549,2.55477044,2535.4,2535.3,59.8367]
[1749886186750,1.93074044,2535.4,2535.3,59.8367]
[1749886186953,1e-08,2535.4,2535.3,59.8367]
[1749886189952,1e-08,2535.4,2535.3,64.8367]
[1749886193447,1e-08,2535.4,2535.3,59.8367]
[1749886193955,1e-08,2535.4,2535.3,69.6177]
[1749886194153,1e-08,2535.4,2535.3,100.6167]
[1749886200657,0.62250001,2535.9,2535.8,0.47301]
[1749886200963,0.62250001,2535.9,2535.8,34.64881]
[1749886202859,0.62250001,2535.9,2535.8,34.9068629]
[1749886203058,5.62250001,2535.9,2535.8,6.471]
[1749886203366,6.74413949,2535.9,2535.8,30.966]
[1749886203963,8.10903949,2535.9,2535.8,30.966]
[1749886205161,6.98740001,2535.9,2535.8,30.965]
[1749886205363,6.98740001,2535.9,2535.5,3.2078]
[1749886205364,8.10874224,2535.9,2535.7,0.47302]
[1749886205666,2.48624223,2535.8,2535.6,0.47303]
[1749886205864,1.3649,2535.7,2535.5,3.68085]
[1749886206065,0.6282,2535.6,2535.5,3.68085]
[1749886206265,0.6282,2535.6,2535.5,10.15185]
[1749886206466,6.2617,2535.6,2535.5,34.64285]
[1749886206666,7.6235,2535.6,2535.5,34.64285]
[1749886208969,6.99,2535.6,2535.5,34.64285]
[1749886209364,1.99,2535.6,2535.5,34.64285]
[1749886211469,1.99,2535.6,2535.5,3.2078]
[1749886211660,1.99,2535.6,2535.3,24.32108]
[1749886211861,1.2708,2535.5,2535.4,31.43208]
[1749886212672,1.2708,2535.5,2535.4,34.63988]
[1749886215268,1.2708,2535.5,2535.4,34.1668]
[1749886215672,1.2708,2535.5,2535.4,34.63988]
[1749886218974,1.9485,2535.5,2535.4,34.63988]
[1749886219972,1.9485,2535.5,2535.4,30.953]
[1749886220770,1.9485,2535.5,2535.4,31.42608]
[1749886220969,1.9485,2535.5,2535.4,30.953]
[1749886222272,6.15077,2535.5,2535.4,24.479]
[1749886222577,2.0076,2535.5,2535.4,24.479]
[1749886223372,2.0076,2535.5,2535.4,24.95208]
[1749886223679,0.6777,2535.5,2535.4,24.95208]
[1749886227982,0.6777,2535.5,2535.4,30.947]
[1749886228576,0.6777,2535.5,2535.4,31.42008]
[1749886228776,0.6777,2535.5,2535.4,30.947]
[1749886229382,1.15076,2535.5,2535.4,30.947]
[1749886230079,0.47308,2535.4,2535.3,27.0558]
[1749886230378,1.15077,2535.5,2535.3,57.9788]